bitfinex-derivatives/quotes_BTCF0:USTF0_20250720
["timestamp","ask_amount","ask_price","bid_price","bid_amount"]
[1752970376042,1.97429191,117820.0,117810.0,0.25241345]
[1752970378540,1.97429191,117820.0,117810.0,0.02163764]
[1752970387749,1.58878633,117820.0,117810.0,0.02163764]
[1752970387952,1.84583005,117820.0,117810.0,0.07160764]
[1752970388450,1.97425191,117820.0,117810.0,0.07160764]
[1752970390955,1.97425191,117820.0,117810.0,0.07898764]
[1752970393155,1.97425191,117820.0,117810.0,0.07160764]
[1752970393858,1.39129191,117820.0,117810.0,0.24866034]
[1752970394058,1.97405191,117820.0,117810.0,0.28642034]
[1752970394659,1.36057803,117820.0,117810.0,0.4148422]
[1752970394959,0.60215803,117820.0,117810.0,0.5846022]
[1752970395357,1.66338186,117830.0,117820.0,0.2647683]
[1752970395563,2.1182,117830.0,117820.0,0.61293416]
[1752970395754,0.71166186,117830.0,117820.0,0.61293416]
[1752970396156,0.58324,117830.0,117820.0,0.61293416]
[1752970396461,0.71166186,117830.0,117820.0,0.61293416]
[1752970396862,0.12842186,117830.0,117820.0,0.61293416]
[1752970397064,0.88126586,117830.0,117820.0,0.61293416]
[1752970397363,0.752844,117830.0,117820.0,0.61293416]
[1752970397662,0.88126586,117830.0,117820.0,0.61293416]
[1752970397859,0.73541556,117840.0,117830.0,0.257374]
[1752970398069,1.16655152,117840.0,117830.0,0.41208835]
[1752970398273,1.29497338,117840.0,117830.0,0.41208835]
[1752970398465,1.40454812,117840.0,117830.0,0.41208835]
[1752970398968,1.40554812,117840.0,117830.0,0.28366649]
[1752970399272,1.40654812,117840.0,117830.0,0.28366649]
[1752970399472,1.40554812,117840.0,117830.0,0.28366649]
[1752970399865,1.40454812,117840.0,117830.0,0.28366649]
[1752970401373,1.1477044,117840.0,117830.0,0.28366649]
[1752970401573,1.40454812,117840.0,117830.0,0.28366649]
[1752970402071,0.5645844,117840.0,117830.0,0.28366649]
[1752970402276,0.82516812,117840.0,117830.0,0.28366649]
[1752970402470,1.40912812,117840.0,117830.0,0.28366649]
[1752970403075,0.82516812,117840.0,117830.0,0.28366649]
[1752970403382,1.40904812,117840.0,117830.0,0.28366649]
[1752970404178,1.45614812,117840.0,117830.0,0.28366649]
[1752970404973,1.46290812,117840.0,117830.0,0.28366649]
[1752970411776,1.59132998,117840.0,117830.0,0.04216249]
[1752970411975,1.59132998,117840.0,117830.0,0.01891249]
[1752970412176,1.59132998,117840.0,117830.0,0.01215249]
[1752970412377,1.61013483,117840.0,117830.0,0.01215249]
[1752970413277,1.61113483,117840.0,117830.0,0.01215249]
[1752970414283,1.61213483,117840.0,117830.0,0.01215249]
[1752970414986,1.56938973,117840.0,117830.0,0.01215249]
[1752970415184,1.56938973,117840.0,117830.0,0.18179649]
[1752970416284,1.56938973,117840.0,117830.0,0.01215249]
[1752970418181,1.56938973,117840.0,117830.0,0.18179649]
[1752970418890,1.56938973,117840.0,117830.0,0.01215249]
[1752970422489,1.56886973,117840.0,117830.0,0.01215249]
[1752970422688,1.56886973,117840.0,117830.0,0.01963249]
[1752970422890,1.56886973,117840.0,117830.0,0.06766249]
[1752970423990,1.56886973,117840.0,117830.0,0.23730639]
[1752970424187,1.39076949,117840.0,117830.0,0.25628639]
[1752970424388,1.39076949,117840.0,117830.0,0.27341639]
[1752970425086,1.39052949,117840.0,117830.0,0.27341639]
[1752970425590,1.39048949,117840.0,117830.0,0.27341639]
[1752970425792,1.34338949,117840.0,117830.0,0.27341639]
[1752970425985,0.80748949,117840.0,117830.0,0.27341639]
[1752970426386,0.76038949,117840.0,117830.0,0.27341639]
[1752970426589,1.34342949,117840.0,117830.0,0.27341639]
[1752970428091,1.39052949,117840.0,117830.0,0.27341639]
[1752970429190,1.37172464,117840.0,117830.0,0.27341639]
[1752970429994,1.2004644,117840.0,117830.0,0.27341639]
[1752970430295,1.37172464,117840.0,117830.0,0.27341639]
[1752970432300,1.2193126,117840.0,117830.0,0.27341639]
[1752970432597,1.39057284,117840.0,117830.0,0.27341639]
[1752970435001,1.75137284,117840.0,117830.0,0.27341639]
[1752970441004,1.83691988,117840.0,117830.0,0.27341639]
[1752970441400,1.5801126,117840.0,117830.0,0.27341639]
[1752970441695,1.83691988,117840.0,117830.0,0.27341639]
[1752970446211,1.25387988,117840.0,117830.0,0.27341639]
[1752970446509,1.83659988,117840.0,117830.0,0.27341639]
[1752970455519,1.11499988,117840.0,117830.0,0.27341639]
[1752970455724,1.83659988,117840.0,117830.0,0.27341639]
[1752970456125,1.5797926,117840.0,117830.0,0.27341639]
[1752970456327,1.83659988,117840.0,117830.0,0.27341639]
[1752970465033,1.83659988,117840.0,117830.0,0.25628639]
[1752970471639,1.83659988,117840.0,117830.0,0.26045639]
[1752970489453,1.83659988,117840.0,117830.0,0.24535639]
[1752970489648,1.96500352,117840.0,117830.0,0.01632249]
[1752970490654,1.96500352,117840.0,117830.0,0.18596649]
[1752970493257,0.2925159,117830.0,117820.0,0.1945172]
[1752970493452,0.97138548,117830.0,117820.0,0.18869934]
[1752970493851,0.97138548,117830.0,117820.0,0.04390214]
[1752970494862,0.97138548,117830.0,117820.0,0.02004214]
[1752970495158,0.1745528,117810.0,117800.0,0.27784412]
[1752970495355,1.75446152,117810.0,117800.0,0.44914874]
[1752970495551,1.75446152,117810.0,117800.0,0.44213874]
[1752970496161,1.75446152,117810.0,117800.0,0.44914874]
[1752970497158,1.75446152,117810.0,117800.0,0.45014874]
[1752970497562,1.75446152,117810.0,117800.0,0.45214874]
[1752970499063,1.75446152,117810.0,117800.0,0.46737874]
[1752970499564,1.73560008,117810.0,117800.0,0.46737874]
[1752970499764,1.60719644,117810.0,117800.0,0.46737874]
[1752970500666,1.60719644,117810.0,117800.0,0.48730874]
[1752970502468,1.60719644,117810.0,117800.0,0.44488734]
[1752970502668,1.73560008,117810.0,117800.0,0.44488734]
[1752970503270,1.75254211,117810.0,117800.0,0.08762634]
[1752970503472,1.75254211,117810.0,117800.0,0.08061634]
[1752970504974,1.75254211,117810.0,117800.0,0.25731354]
[1752970507374,1.75254211,117810.0,117800.0,0.29247354]
[1752970508675,1.03094211,117810.0,117800.0,0.29247354]
[1752970508880,1.75254211,117810.0,117800.0,0.29247354]
[1752970509381,1.73560008,117810.0,117800.0,0.29247354]
[1752970509581,1.60719644,117810.0,117800.0,0.29247354]
[1752970510780,1.73560008,117810.0,117800.0,0.29247354]
[1752970514279,1.60719644,117810.0,117800.0,0.29247354]
[1752970515478,1.73560008,117810.0,117800.0,0.29247354]
[1752970517481,1.75440925,117810.0,117800.0,0.29247354]
[1752970518079,1.62412561,117810.0,117800.0,0.29247354]
[1752970519381,1.62600561,117810.0,117800.0,0.29247354]
[1752970521383,1.62412561,117810.0,117800.0,0.29247354]
[1752970524381,1.26332561,117810.0,117800.0,0.29247354]
[1752970524589,1.26493561,117810.0,117800.0,0.29247354]
[1752970525988,1.39333925,117810.0,117800.0,0.29247354]
[1752970553104,1.39338618,117810.0,117800.0,0.29247354]
[1752970556710,1.1365789,117810.0,117800.0,0.29247354]
[1752970556908,1.39338618,117810.0,117800.0,0.29247354]
[1752970560810,1.03258618,117810.0,117800.0,0.29247354]
[1752970561012,1.75418618,117810.0,117800.0,0.29247354]
[1752970567416,1.39338618,117810.0,117800.0,0.29247354]
[1752970580326,1.26498254,117810.0,117800.0,0.29247354]
[1752970582935,1.39338618,117810.0,117800.0,0.29247354]
[1752970587031,0.81074618,117810.0,117800.0,0.29247354]
[1752970587236,1.39294618,117810.0,117800.0,0.29247354]
[1752970587432,0.81074618,117810.0,117800.0,0.29247354]
[1752970587637,1.39290618,117810.0,117800.0,0.29247354]
[1752970587936,0.81074618,117810.0,117800.0,0.29247354]
[1752970588140,1.26450254,117810.0,117800.0,0.29247354]
[1752970588532,0.68234254,117810.0,117800.0,0.29247354]
[1752970588837,1.26450254,117810.0,117800.0,0.29247354]
[1752970589836,1.39290618,117810.0,117800.0,0.29247354]
[1752970590438,0.81074618,117810.0,117800.0,0.29247354]
[1752970590733,1.39290618,117810.0,117800.0,0.29247354]
[1752970592140,1.39286618,117810.0,117800.0,0.29247354]
[1752970594943,1.26446254,117810.0,117800.0,0.29247354]
[1752970599848,1.39286618,117810.0,117800.0,0.29247354]
[1752970600841,1.26446254,117810.0,117800.0,0.29247354]
[1752970607447,1.09305974,117810.0,117800.0,0.42087718]
[1752970608151,1.26273254,117810.0,117800.0,0.42087718]
[1752970608357,1.09305974,117810.0,117800.0,0.42087718]
[1752970608755,0.51105974,117810.0,117800.0,0.42087718]
[1752970609146,0.85513993,117820.0,117810.0,0.07479]
[1752970609147,0.00127,117820.0,117810.0,0.07479]
[1752970609349,0.58327,117820.0,117810.0,0.94647414]
[1752970609555,0.58327,117820.0,117810.0,0.98889114]
[1752970609755,0.37898251,117830.0,117820.0,0.2600084]
[1752970609957,0.14658615,117830.0,117820.0,0.55681568]
[1752970610258,0.72854615,117830.0,117820.0,0.55681568]
[1752970610454,0.72854615,117830.0,117820.0,0.42841204]
[1752970610958,0.72954615,117830.0,117820.0,0.42841204]
[1752970611256,0.01791251,117830.0,117820.0,0.55681568]
[1752970611459,0.59987251,117830.0,117820.0,1.18761568]
[1752970612251,0.60087251,117830.0,117820.0,1.18761568]
[1752970615759,0.58396,117830.0,117820.0,1.18761568]
[1752970618056,0.71236364,117830.0,117820.0,1.18761568]
[1752970618757,0.13040364,117830.0,117820.0,1.18761568]
[1752970618957,0.71220364,117830.0,117820.0,1.18761568]
[1752970620261,0.13040364,117830.0,117820.0,1.18761568]
[1752970620460,0.71220364,117830.0,117820.0,1.47931568]
[1752970621655,0.5838,117830.0,117820.0,1.47931568]
[1752970623662,0.5838,117830.0,117820.0,1.2225084]
[1752970623863,0.71220364,117830.0,117820.0,1.47931568]
[1752970624365,1.24391764,117830.0,117820.0,0.5700084]
[1752970624561,1.24391764,117830.0,117820.0,0.48841204]
[1752970625863,1.24391764,117830.0,117820.0,0.3600084]
[1752970627365,1.24391764,117830.0,117820.0,0.48841204]
[1752970628771,1.07427364,117830.0,117820.0,0.48841204]
[1752970628969,0.58507,117830.0,117820.0,0.48841204]
[1752970629159,0.71347364,117830.0,117820.0,0.48841204]
[1752970631966,0.58507,117830.0,117820.0,0.48841204]
[1752970632174,0.71347364,117830.0,117820.0,0.48841204]
[1752970632373,0.71347364,117830.0,117820.0,0.61681568]
[1752970633073,0.71347364,117830.0,117820.0,0.48841204]
[1752970633874,0.71347364,117830.0,117820.0,0.61681568]
[1752970634373,0.71347364,117830.0,117820.0,0.48841204]
[1752970635573,0.71347364,117830.0,117820.0,0.61681568]
[1752970635773,0.71347364,117830.0,117820.0,0.48841204]
[1752970636275,0.71347364,117830.0,117820.0,0.84921204]
[1752970643279,0.71347364,117830.0,117820.0,0.97761568]
[1752970643675,0.002,117830.0,117820.0,0.97761568]
[1752970643878,0.71196364,117830.0,117820.0,0.97761568]
[1752970645680,0.71096364,117830.0,117820.0,0.97761568]
[1752970646279,0.70996364,117830.0,117820.0,0.97761568]
[1752970646881,0.58156,117830.0,117820.0,0.97761568]
[1752970647081,0.36207,117840.0,117830.0,0.253034]
[1752970647284,0.7299926,117840.0,117830.0,0.7173308]
[1752970647482,0.8996222,117840.0,117830.0,0.7173308]
[1752970647984,0.7299526,117840.0,117830.0,0.7173308]
[1752970648882,0.1484326,117840.0,117830.0,0.7173308]
[1752970649082,0.7299526,117840.0,117830.0,0.7173308]
[1752970649782,0.1484326,117840.0,117830.0,0.7173308]
[1752970649983,0.7299526,117840.0,117830.0,0.7173308]
[1752970650585,0.1484326,117840.0,117830.0,0.7173308]
[1752970650886,0.7299526,117840.0,117830.0,0.7173308]
[1752970651181,0.8995822,117840.0,117830.0,0.7173308]
[1752970651784,1.02798584,117840.0,117830.0,0.7173308]
[1752970653187,1.02794584,117840.0,117830.0,0.7173308]
[1752970654087,0.44646584,117840.0,117830.0,0.7173308]
[1752970654288,1.02794584,117840.0,117830.0,0.7173308]
[1752970654488,0.44646584,117840.0,117830.0,0.58892716]
[1752970654690,1.02794584,117840.0,117830.0,0.58892716]
[1752970654988,1.02873584,117840.0,117830.0,0.58892716]
[1752970655176,0.9003322,117840.0,117830.0,0.58892716]
[1752970655382,1.02873584,117840.0,117830.0,0.58892716]
[1752970655889,0.44725584,117840.0,117830.0,0.58892716]
[1752970656085,0.44925584,117840.0,117830.0,0.58892716]
[1752970656284,1.03073584,117840.0,117830.0,0.58892716]
[1752970656685,0.44925584,117840.0,117830.0,0.58892716]
[1752970656880,1.03073584,117840.0,117830.0,0.58892716]
[1752970657189,1.03069584,117840.0,117830.0,0.58892716]
[1752970658293,1.03069584,117840.0,117830.0,0.7173308]
[1752970658294,0.44846584,117840.0,117830.0,0.7173308]
[1752970658494,1.02990584,117840.0,117830.0,0.7173308]
[1752970659896,0.44846584,117840.0,117830.0,0.7173308]
[1752970660097,1.02990584,117840.0,117830.0,0.7173308]
[1752970660699,0.27883624,117840.0,117830.0,0.7173308]
[1752970660899,0.7318726,117840.0,117830.0,0.7173308]
[1752970661395,0.1504326,117840.0,117830.0,0.7173308]
[1752970661599,0.7318726,117840.0,117830.0,0.7173308]
[1752970661900,0.9015022,117840.0,117830.0,0.7173308]
[1752970662096,0.1504326,117840.0,117830.0,0.7173308]
[1752970662400,0.02075896,117840.0,117830.0,0.9673308]
[1752970662700,0.5834,117840.0,117830.0,1.3892112]
[1752970662999,0.002,117840.0,117830.0,1.51761484]
[1752970663195,0.9422,117850.0,117840.0,0.2530196]
[1752970663396,0.96096601,117850.0,117840.0,0.75662688]
[1752970664199,0.37956601,117850.0,117840.0,0.75662688]
[1752970664501,0.96096601,117850.0,117840.0,0.75662688]
[1752970665101,0.9422,117850.0,117840.0,0.75662688]
[1752970665397,1.40524313,117870.0,117860.0,0.2529908]
[1752970665601,2.13380334,117870.0,117860.0,0.40710329]
[1752970666497,0.37955657,117870.0,117860.0,0.47463434]
[1752970666705,0.96095657,117870.0,117860.0,0.60303798]
[1752970667100,0.96095657,117870.0,117860.0,0.47463434]
[1752970667101,1.09063021,117870.0,117860.0,0.47463434]
[1752970668207,0.94447,117870.0,117860.0,0.47463434]
[1752970668409,1.07487364,117870.0,117860.0,0.47463434]
[1752970668908,1.07483364,117870.0,117860.0,0.47463434]
[1752970669109,0.49347364,117870.0,117860.0,0.47463434]
[1752970669312,1.07483364,117870.0,117860.0,0.47463434]
[1752970669507,0.66306004,117870.0,117860.0,0.47463434]
[1752970669707,1.24442004,117870.0,117860.0,0.47463434]
[1752970670310,1.24438004,117870.0,117860.0,0.47463434]
[1752970670611,0.66306004,117870.0,117860.0,0.47463434]
[1752970670811,1.07479364,117870.0,117860.0,0.47463434]
[1752970672410,1.24438004,117870.0,117860.0,0.47463434]
[1752970673813,1.07479364,117870.0,117860.0,0.47463434]
[1752970674009,0.94639,117870.0,117860.0,0.47463434]
[1752970674204,1.07479364,117870.0,117860.0,0.47463434]
[1752970674813,0.71399364,117870.0,117860.0,0.47463434]
[1752970675014,1.24438004,117870.0,117860.0,0.47463434]
[1752970676411,0.88358004,117870.0,117860.0,0.47463434]
[1752970676609,1.24438004,117870.0,117860.0,0.47463434]
[1752970677214,1.07479364,117870.0,117860.0,0.47463434]
[1752970678914,0.71399364,117870.0,117860.0,0.47463434]
[1752970679219,1.07479364,117870.0,117860.0,0.47463434]
[1752970679420,1.24438004,117870.0,117860.0,0.3462307]
[1752970679623,1.24438004,117870.0,117860.0,0.47463434]
[1752970680020,1.1159764,117870.0,117860.0,0.47463434]
[1752970680320,1.24438004,117870.0,117860.0,0.47463434]
[1752970680718,1.07479364,117870.0,117860.0,0.47463434]
[1752970683524,1.24438004,117870.0,117860.0,0.47463434]
[1752970684323,1.07479364,117870.0,117860.0,0.47463434]
[1752970685924,0.71399364,117870.0,117860.0,0.47463434]
[1752970686123,1.07479364,117870.0,117860.0,0.47463434]
[1752970686423,0.71399364,117870.0,117860.0,0.47463434]
[1752970686624,1.24438004,117870.0,117860.0,0.47463434]
[1752970689229,1.37427368,117870.0,117860.0,0.2560407]
[1752970689824,1.37427368,117870.0,117860.0,0.2790507]
[1752970690025,1.37427368,117870.0,117860.0,0.3024307]
[1752970690526,1.24587004,117870.0,117860.0,0.3024307]
[1752970690727,1.24587004,117870.0,117860.0,0.3092807]
[1752970691322,1.26459436,117870.0,117860.0,0.3092807]
[1752970693418,1.26459436,117870.0,117860.0,0.3418007]
[1752970693623,1.26459436,117870.0,117860.0,0.3453507]
[1752970693818,1.26459436,117870.0,117860.0,0.47375434]
[1752970694831,1.26459436,117870.0,117860.0,0.3453507]
[1752970696730,1.26459436,117870.0,117860.0,0.3092807]
[1752970698023,1.26459436,117870.0,117860.0,0.18850965]
[1752970698024,1.392998,117870.0,117860.0,0.18850965]
[1752970698722,1.392998,117870.0,117860.0,0.01890885]
[1752970698927,1.392998,117870.0,117860.0,0.18850965]
[1752970700633,1.392998,117870.0,117860.0,0.21161965]
[1752970700834,1.392998,117870.0,117860.0,0.23501965]
[1752970701132,1.13619072,117870.0,117860.0,0.23501965]
[1752970701333,1.26459436,117870.0,117860.0,0.23501965]
[1752970702931,1.392998,117870.0,117860.0,0.23501965]
[1752970703438,0.68327436,117870.0,117860.0,0.24212965]
[1752970703629,1.26543436,117870.0,117860.0,0.25761965]
[1752970703829,0.68327436,117870.0,117860.0,0.25761965]
[1752970704128,1.26539436,117870.0,117860.0,0.25761965]
[1752970704637,0.68327436,117870.0,117860.0,0.40521329]
[1752970704939,1.26539436,117870.0,117860.0,0.40521329]
[1752970705932,0.68327436,117870.0,117860.0,0.40521329]
[1752970706133,1.26543436,117870.0,117860.0,0.40521329]
[1752970706638,1.26443436,117870.0,117860.0,0.40521329]
[1752970706838,1.26094436,117870.0,117860.0,0.40521329]
[1752970707245,1.26173436,117870.0,117860.0,0.40521329]
[1752970710440,1.26173436,117870.0,117860.0,0.27680965]
[1752970710636,0.67957436,117870.0,117860.0,0.27680965]
[1752970710840,1.26133436,117870.0,117860.0,0.27680965]
[1752970711943,1.13293072,117870.0,117860.0,0.27680965]
[1752970712242,1.26133436,117870.0,117860.0,0.27680965]
[1752970713143,1.26133436,117870.0,117860.0,0.40521329]
[1752970713746,1.13293072,117870.0,117860.0,0.40521329]
[1752970714043,1.26133436,117870.0,117860.0,0.40521329]
[1752970715243,1.24261004,117870.0,117860.0,0.40521329]
[1752970715541,1.26127771,117870.0,117860.0,0.40521329]
[1752970717053,0.50922131,117870.0,117860.0,0.40521329]
[1752970717253,1.09086131,117870.0,117860.0,0.40521329]
[1752970717548,0.50922131,117870.0,117860.0,0.40521329]
[1752970717755,0.96110767,117870.0,117860.0,0.53361693]
[1752970718051,1.08951131,117870.0,117860.0,0.53361693]
[1752970718557,1.08951131,117870.0,117860.0,0.40521329]
[1752970718856,1.08951131,117870.0,117860.0,0.39621329]
[1752970719056,0.96237767,117870.0,117860.0,0.39621329]
[1752970719256,1.09078131,117870.0,117860.0,0.39621329]
[1752970720258,1.09078131,117870.0,117860.0,0.52461693]
[1752970720556,0.50922131,117870.0,117860.0,0.52461693]
[1752970720750,1.09094131,117870.0,117860.0,0.52461693]
[1752970721456,1.09094131,117870.0,117860.0,0.39621329]
[1752970722252,1.09094131,117870.0,117860.0,0.52461693]
[1752970722453,1.09094131,117870.0,117860.0,0.52561693]
[1752970723252,0.96253767,117870.0,117860.0,0.52661693]
[1752970723658,0.94379,117870.0,117860.0,0.26980965]
[1752970723859,0.58299,117870.0,117860.0,0.52661693]
[1752970724654,0.58299,117870.0,117860.0,0.67661693]
[1752970725357,0.3608,117880.0,117870.0,0.2578864]
[1752970725659,0.58196,117880.0,117870.0,0.74709004]
[1752970727154,0.54954684,117900.0,117890.0,0.1695576]
[1752970727363,1.40700981,117900.0,117890.0,0.2578576]
[1752970727758,1.15020253,117900.0,117890.0,0.2578576]
[1752970728060,1.40700981,117900.0,117890.0,0.2578576]
[1752970728957,1.15220253,117900.0,117890.0,0.38626124]
[1752970729154,1.28092617,117900.0,117890.0,0.38626124]
[1752970729361,0.98218923,117900.0,117890.0,0.38626124]
[1752970729559,1.28013617,117900.0,117890.0,0.38626124]
[1752970729760,1.28313617,117900.0,117890.0,0.38626124]
[1752970730062,1.28313617,117900.0,117890.0,0.39455246]
[1752970730464,1.26440048,117900.0,117890.0,0.26614882]
[1752970730763,1.26519048,117900.0,117890.0,0.39455246]
[1752970731561,1.28390192,117900.0,117890.0,0.39455246]
[1752970732163,1.28390192,117900.0,117890.0,0.26614882]
[1752970732566,1.28390192,117900.0,117890.0,0.39455246]
[1752970732866,1.28390192,117900.0,117890.0,0.26614882]
[1752970733061,1.41230556,117900.0,117890.0,0.26614882]
[1752970733660,1.15549828,117900.0,117890.0,0.26614882]
[1752970733865,1.28390192,117900.0,117890.0,0.26614882]
[1752970735169,1.28390192,117900.0,117890.0,0.25042882]
[1752970735364,1.28390192,117900.0,117890.0,0.23146882]
[1752970737569,1.28390192,117900.0,117890.0,0.35987246]
[1752970738065,1.41230556,117900.0,117890.0,0.39455246]
[1752970739365,1.41230556,117900.0,117890.0,0.22435882]
[1752970739366,1.41229713,117900.0,117890.0,0.22435882]
[1752970739566,1.54070077,117900.0,117890.0,0.00829122]
[1752970739771,0.1695576,117890.0,117880.0,0.32246979]
[1752970739968,0.78716488,117890.0,117880.0,0.32246979]
[1752970740363,0.78716488,117890.0,117880.0,0.23105919]
[1752970740568,0.78716488,117890.0,117880.0,0.18868369]
[1752970740770,0.80586663,117890.0,117880.0,0.18868369]
[1752970741166,0.80686663,117890.0,117880.0,0.19730754]
[1752970741372,0.80886663,117890.0,117880.0,0.19730754]
[1752970741567,0.68046299,117890.0,117880.0,0.19730754]
[1752970741772,0.80886663,117890.0,117880.0,0.19730754]
[1752970742173,0.55205935,117890.0,117880.0,0.19730754]
[1752970742376,0.68046299,117890.0,117880.0,0.19730754]
[1752970743073,0.7231308,117890.0,117880.0,0.19730754]
[1752970744073,0.7231308,117890.0,117880.0,0.24632754]
[1752970746273,0.7231308,117890.0,117880.0,0.25325754]
[1752970746475,0.55205935,117890.0,117880.0,0.28793754]
[1752970746873,1.1184376,117890.0,117880.0,0.28793754]
[1752970747273,1.13715613,117890.0,117880.0,0.28793754]
[1752970748080,1.13415613,117890.0,117880.0,0.28793754]
[1752970751680,1.30522758,117890.0,117880.0,0.28793754]
[1752970754183,0.72014758,117890.0,117880.0,0.28793754]
[1752970754383,1.30502758,117890.0,117880.0,0.28793754]
[1752970756583,1.30502758,117890.0,117880.0,0.26882585]
[1752970763888,1.13379613,117890.0,117880.0,0.4398973]
[1752970764085,1.13379613,117890.0,117880.0,0.45885525]
[1752970765483,1.13379613,117890.0,117880.0,0.2877838]
[1752970768494,0.77299613,117890.0,117880.0,0.2877838]
[1752970768993,1.13379613,117890.0,117880.0,0.2877838]
[1752970773695,0.96423853,117890.0,117880.0,0.45885525]
[1752970776592,0.37951853,117890.0,117880.0,0.45885525]
[1752970776797,0.60251853,117890.0,117880.0,0.6299267]
[1752970776998,0.60251853,117890.0,117880.0,0.80885525]
[1752970777596,0.60251853,117890.0,117880.0,1.16965525]
[1752970777797,0.5838,117890.0,117880.0,1.16965525]
[1752970778193,0.5838,117890.0,117880.0,0.81965525]
[1752970778400,0.3608,117900.0,117890.0,0.2612076]
[1752970778596,0.96331041,117900.0,117890.0,0.43227905]
[1752970778894,0.60251041,117900.0,117890.0,0.43227905]
[1752970779198,1.13284955,117900.0,117890.0,0.2612076]
[1752970779396,0.60250625,117900.0,117890.0,0.43227905]
[1752970779898,0.77204955,117900.0,117890.0,0.43227905]
[1752970780093,0.77204955,117900.0,117890.0,0.43327905]
[1752970780293,0.77204955,117900.0,117890.0,0.43427905]
[1752970781500,1.13284955,117900.0,117890.0,0.43427905]
[1752970782300,0.77204955,117900.0,117890.0,0.43427905]
[1752970782902,1.13284955,117900.0,117890.0,0.43427905]
[1752970784792,1.13284955,117900.0,117890.0,0.2632076]
[1752970784993,1.303921,117900.0,117890.0,0.2632076]
[1752970785198,1.303921,117900.0,117890.0,0.2207576]
[1752970786202,1.303921,117900.0,117890.0,0.2275176]
[1752970786406,1.303921,117900.0,117890.0,0.2265176]
[1752970786605,1.304921,117900.0,117890.0,0.2265176]
[1752970788009,1.306921,117900.0,117890.0,0.2255176]
[1752970792511,0.946121,117900.0,117890.0,0.2255176]
[1752970792717,1.306921,117900.0,117890.0,0.2255176]
[1752970795018,1.13584955,117900.0,117890.0,0.2255176]
[1752970795225,1.306921,117900.0,117890.0,0.2255176]
[1752970795722,1.306921,117900.0,117890.0,0.2600876]
[1752970796919,0.77504955,117900.0,117890.0,0.2600876]
[1752970797724,1.13584955,117900.0,117890.0,0.2600876]
[1752970797921,0.77504955,117900.0,117890.0,0.2600876]
[1752970798927,1.13584955,117900.0,117890.0,0.2600876]
[1752970801031,1.306921,117900.0,117890.0,0.2600876]
[1752970803034,1.13584955,117900.0,117890.0,0.2600876]
[1752970803330,1.306921,117900.0,117890.0,0.2600876]
[1752970803930,0.723121,117900.0,117890.0,0.2600876]
[1752970804235,1.13520955,117900.0,117890.0,0.43115905]
[1752970804922,1.13520955,117900.0,117890.0,0.38833346]
[1752970804923,1.26345541,117900.0,117890.0,0.38833346]
[1752970806927,1.26245541,117900.0,117890.0,0.38833346]
[1752970807335,1.26045541,117900.0,117890.0,0.38833346]
[1752970811031,0.89965541,117900.0,117890.0,0.38833346]
[1752970811232,1.26045541,117900.0,117890.0,0.38833346]
[1752970812734,0.89965541,117900.0,117890.0,0.38833346]
[1752970812934,1.26045541,117900.0,117890.0,0.38833346]
[1752970813135,0.89965541,117900.0,117890.0,0.38833346]
[1752970813332,1.26045541,117900.0,117890.0,0.38833346]
[1752970814036,1.13220955,117900.0,117890.0,0.54833346]
[1752970814237,1.26045541,117900.0,117890.0,0.54833346]
[1752970815531,0.89965541,117900.0,117890.0,0.54833346]
[1752970815933,1.13220955,117900.0,117890.0,0.54833346]
[1752970816729,0.77140955,117900.0,117890.0,0.54833346]
[1752970822541,0.89965541,117900.0,117890.0,0.54833346]
[1752970822745,0.73011211,117900.0,117890.0,0.54833346]
[1752970823045,0.77140945,117900.0,117890.0,0.54833346]
[1752970823740,1.13220945,117900.0,117890.0,0.54833346]
[1752970823945,0.77140945,117900.0,117890.0,0.54833346]
[1752970824340,1.13220945,117900.0,117890.0,0.54833346]
[1752970824536,0.77140945,117900.0,117890.0,0.54833346]
[1752970825049,1.13220945,117900.0,117890.0,0.54833346]
[1752970825244,1.26045531,117900.0,117890.0,0.54833346]
[1752970829855,1.13220945,117900.0,117890.0,0.54833346]
[1752970830053,1.26045531,117900.0,117890.0,0.54833346]
[1752970831956,1.26045531,117900.0,117890.0,0.38833346]
[1752970835156,1.38870117,117900.0,117890.0,0.38833346]
[1752970836056,1.38870117,117900.0,117890.0,0.2187576]
[1752970836644,1.38870117,117900.0,117890.0,0.2187577]
[1752970836849,0.1695577,117890.0,117880.0,0.3785035]
[1752970837051,0.69465527,117890.0,117880.0,0.3785035]
[1752970837853,0.69465527,117890.0,117880.0,0.3795035]
[1752970838455,0.69465527,117890.0,117880.0,0.3785035]
[1752970842959,0.69465527,117890.0,117880.0,0.3949435]
[1752970844557,0.69465527,117890.0,117880.0,0.4114435]
[1752970844859,0.69465527,117890.0,117880.0,0.4148635]
[1752970845055,0.56640941,117890.0,117880.0,0.4148635]
[1752970845257,0.69465527,117890.0,117880.0,0.4148635]
[1752970845561,0.69465527,117890.0,117880.0,0.54310936]
[1752970847664,0.56640941,117890.0,117880.0,0.54310936]
[1752970847959,0.69465527,117890.0,117880.0,0.54310936]
[1752970849762,0.69465527,117890.0,117880.0,0.4148635]
[1752970849958,0.69465527,117890.0,117880.0,0.54310936]
[1752970850561,0.69465527,117890.0,117880.0,0.4148635]
[1752970850763,0.69465527,117890.0,117880.0,0.54310936]
[1752970851661,0.69465527,117890.0,117880.0,0.4148635]
[1752970851861,0.69465527,117890.0,117880.0,0.54310936]
[1752970857264,0.69465527,117890.0,117880.0,0.4148635]
[1752970857464,0.69465527,117890.0,117880.0,0.54310936]
[1752970860070,0.69465527,117890.0,117880.0,0.4148635]
[1752970860370,0.69465527,117890.0,117880.0,0.54310936]
[1752970862967,0.67594902,117890.0,117880.0,0.54310936]
[1752970863168,0.69464064,117890.0,117880.0,0.54310936]
[1752970863671,0.69464064,117890.0,117880.0,0.4148635]
[1752970863966,0.56639478,117890.0,117880.0,0.4148635]
[1752970864373,0.69464064,117890.0,117880.0,0.4148635]
[1752970864969,0.69464064,117890.0,117880.0,0.54310936]
[1752970866376,0.69464064,117890.0,117880.0,0.4148635]
[1752970868175,0.69464064,117890.0,117880.0,0.54310936]
[1752970872678,0.56639478,117890.0,117880.0,0.54310936]
[1752970872883,0.69464064,117890.0,117880.0,0.54310936]
[1752970873285,0.56639478,117890.0,117880.0,0.54310936]
[1752970873486,0.69464064,117890.0,117880.0,0.54310936]
[1752970876781,0.54904932,117890.0,117880.0,0.54310936]
[1752970876981,0.67729518,117890.0,117880.0,0.54310936]
[1752970877887,0.54904932,117890.0,117880.0,0.54310936]
[1752970878184,0.67729518,117890.0,117880.0,0.54310936]
[1752970879087,0.67729518,117890.0,117880.0,0.4148635]
[1752970879387,0.67729518,117890.0,117880.0,0.54310936]
[1752970880883,0.31649518,117890.0,117880.0,0.54310936]
[1752970881083,0.67729518,117890.0,117880.0,0.54310936]
[1752970881589,0.67729518,117890.0,117880.0,0.4148635]
[1752970881778,0.67729518,117890.0,117880.0,0.54310936]
[1752970884892,0.31649518,117890.0,117880.0,0.54310936]
[1752970885189,0.67729518,117890.0,117880.0,0.54310936]
[1752970885888,0.67729518,117890.0,117880.0,0.54290284]
[1752970886392,0.54904932,117890.0,117880.0,0.54290284]